fUSD/lending_fUSD_20241225
["ID","MTS","AMOUNT","RATE_DAILY","PERIOD"]
[346655818,1735153847476,-551.41,0.00012535,2]
[346655819,1735153847486,-407.85,0.00012535,2]
[346655820,1735153847495,-215.79,0.00012535,2]
[346655821,1735153847505,-511.99,0.00012535,2]
[346655822,1735153847515,-500.0,0.00012535,2]
[346655823,1735153847524,-500.0,0.00012535,2]
[346655824,1735153847533,-500.0,0.00012535,2]
[346655825,1735153847542,-500.0,0.00012535,2]
[346655826,1735153847552,-500.0,0.00012535,2]
[346655827,1735153847561,-500.0,0.00012535,2]
[346655828,1735153847571,-500.0,0.00012535,2]
[346655829,1735153847580,-500.0,0.00012535,2]
[346655830,1735153847589,-553.08,0.00012535,2]
[346655831,1735153847598,-500.0,0.00012535,2]
[346655832,1735153847607,-500.0,0.00012535,2]
[346655833,1735153847616,-500.0,0.00012535,2]
[346655834,1735153847626,-500.0,0.00012535,2]
[346655835,1735153847635,-500.0,0.00012535,2]
[346655836,1735153847645,-500.0,0.00012535,2]
[346655837,1735153847654,-500.0,0.00012535,2]
[346655838,1735153847664,-500.0,0.00012535,2]
[346655839,1735153847673,-500.0,0.00012535,2]
[346655840,1735153847683,-500.0,0.00012535,2]
[346655841,1735153847692,-500.0,0.00012535,2]
[346655842,1735153847701,-500.0,0.00012535,2]
[346655843,1735153847711,-500.0,0.00012535,2]
[346655844,1735153847720,-500.0,0.00012535,2]
[346655845,1735153847729,-500.0,0.00012535,2]
[346655846,1735153847738,-677.04,0.00012535,2]
[346655847,1735153847748,-187.05,0.00012535,2]
[346655848,1735153847757,-500.0,0.00012535,2]
[346655849,1735153847766,-500.0,0.00012535,2]
[346655850,1735153847775,-500.0,0.00012535,2]
[346655851,1735153847785,-500.0,0.00012535,2]
[346655852,1735153847795,-500.0,0.00012535,2]
[346655853,1735153847804,-500.0,0.00012535,2]
[346655854,1735153847814,-500.0,0.00012535,2]
[346655855,1735153847823,-679.5,0.00012535,2]
[346655856,1735153847832,-500.0,0.00012535,2]
[346655857,1735153847842,-468.28,0.00012535,2]
[346655858,1735153847851,-500.0,0.00012535,2]
[346655859,1735153847860,-583.61,0.00012535,2]
[346655860,1735153847870,-500.0,0.00012535,2]
[346655861,1735153847879,-500.0,0.00012535,2]
[346655862,1735153847889,-500.0,0.00012535,2]
[346655863,1735153847898,-157.34,0.00012535,2]
[346655864,1735153847908,-500.0,0.00012535,2]
[346655865,1735153847917,-500.0,0.00012535,2]
[346655866,1735153847927,-655.14,0.00012535,2]
[346655867,1735153847936,-500.0,0.00012535,2]
[346655868,1735153847946,-500.0,0.00012535,2]
[346655869,1735153847955,-500.0,0.00012535,2]
[346655870,1735153847965,-500.0,0.00012535,2]
[346655871,1735153847974,-213.86,0.00012535,2]
[346655872,1735153847985,-372.32,0.00012535,2]
[346655873,1735153847994,-500.0,0.00012535,2]
[346655874,1735153848003,-569.87,0.00012535,2]
[346655875,1735153848012,-500.0,0.00012535,2]
[346655876,1735153848021,-500.0,0.00012535,2]
[346655877,1735153848031,-500.0,0.00012535,2]
[346655878,1735153848040,-500.0,0.00012535,2]
[346655879,1735153848049,-1151.14,0.00012535,2]
[346655880,1735153848058,-500.0,0.00012535,2]
[346655881,1735153848068,-500.0,0.00012535,2]
[346655882,1735153848077,-542.84,0.00012535,2]
[346655883,1735153848086,-500.0,0.00012535,2]
[346655884,1735153848096,-630.71,0.00012535,2]
[346655885,1735153848106,-429.82,0.00012535,2]
[346655886,1735153848115,-259.28,0.00012535,2]
[346655887,1735153848124,-500.0,0.00012535,2]
[346655888,1735153848133,-610.6,0.00012535,2]
[346655889,1735153848142,-777.89,0.00012535,2]
[346655890,1735153848152,-500.0,0.00012535,2]
[346655891,1735153848161,-678.57,0.00012535,2]
[346655892,1735153848171,-500.0,0.00012535,2]
[346655893,1735153848180,-500.0,0.00012535,2]
[346655894,1735153848193,-1090.73,0.00012535,2]
[346655895,1735153848202,-243.76,0.00012535,2]
[346655896,1735153848211,-500.0,0.00012535,2]
[346655897,1735153848220,-2229.48,0.00012535,2]
[346655898,1735153848230,-668.23,0.00012535,2]
[346655899,1735153848238,-308.92,0.00012535,2]
[346655900,1735153848247,-1286.93,0.00012535,2]
[346655901,1735153848258,-500.0,0.00012535,2]
[346655902,1735153848267,-500.0,0.00012535,2]
[346655903,1735153848276,-1926.83,0.00012535,2]
[346655904,1735153848286,-500.0,0.00012535,2]
[346655905,1735153848295,-458.9,0.00012535,2]
[346655906,1735153848304,-500.0,0.00012535,2]
[346655907,1735153848314,-157.86,0.00012535,2]
[346655908,1735153848323,-156.21,0.00012535,2]
[346655909,1735153848332,-500.0,0.00012535,2]
[346655910,1735153848341,-500.0,0.00012535,2]
[346655911,1735153848351,-500.0,0.00012535,2]
[346655912,1735153848361,-500.0,0.00012535,2]
[346655913,1735153848370,-4039.1,0.00012535,2]
[346655914,1735153848379,-500.0,0.00012535,2]
[346655915,1735153848388,-500.0,0.00012535,2]
[346655916,1735153848398,-500.0,0.00012535,2]
[346655917,1735153848407,-500.0,0.00012535,2]
[346655918,1735153848416,-500.0,0.00012535,2]
[346655919,1735153848426,-1092.17,0.00012535,2]
[346655920,1735153848435,-3305.98,0.00012535,2]
[346655921,1735153848444,-500.0,0.00012535,2]
[346655922,1735153848453,-500.0,0.00012535,2]
[346655923,1735153848463,-1887.28,0.00012535,2]
[346655924,1735153848654,-500.0,0.00012535,2]
[346655925,1735153848664,-500.0,0.00012535,2]
[346655926,1735153848674,-644.41109844,0.00012535,2]
[346655927,1735153848683,-500.0,0.00012535,2]
[346655928,1735153848692,-967.87,0.00012535,2]
[346655929,1735153848702,-2507.24,0.00012535,2]
[346655930,1735153848711,-500.0,0.00012535,2]
[346655931,1735153848721,-500.0,0.00012535,2]
[346655932,1735153848730,-500.0,0.00012535,2]
[346655933,1735153848739,-500.0,0.00012535,2]
[346655934,1735153848749,-1082.92,0.00012535,2]
[346655935,1735153848759,-500.0,0.00012535,2]
[346655936,1735153848768,-627.34,0.00012535,2]
[346655937,1735153848777,-500.0,0.00012535,2]
[346655938,1735153848786,-500.0,0.00012535,2]
[346655939,1735153848795,-500.0,0.00012535,2]
[346655940,1735153848805,-500.0,0.00012535,2]
[346655941,1735153848814,-500.0,0.00012535,2]
[346655942,1735153848823,-500.0,0.00012535,2]
[346655943,1735153848832,-500.0,0.00012535,2]
[346655944,1735153848842,-500.0,0.00012535,2]
[346655945,1735153848851,-2707.34,0.00012535,2]
[346655946,1735153848860,-2473.94,0.00012535,2]
[346655947,1735153848870,-500.0,0.00012535,2]
[346655948,1735153848879,-500.0,0.00012535,2]
[346655949,1735153848888,-500.0,0.00012535,2]
[346655950,1735153848898,-500.0,0.00012535,2]
[346655951,1735153848907,-500.0,0.00012535,2]
[346655952,1735153848916,-2841.81,0.00012535,2]
[346655953,1735153848926,-500.0,0.00012535,2]
[346655954,1735153848935,-500.0,0.00012535,2]
[346655955,1735153848944,-500.0,0.00012535,2]
[346655956,1735153848953,-500.0,0.00012535,2]
[346655957,1735153848962,-500.0,0.00012535,2]
[346655958,1735153848972,-500.0,0.00012535,2]
[346655959,1735153848981,-500.0,0.00012535,2]
[346655960,1735153848990,-500.0,0.00012535,2]
[346655961,1735153848999,-500.0,0.00012535,2]
[346655962,1735153849009,-500.0,0.00012535,2]
[346655963,1735153849018,-500.0,0.00012535,2]
[346655964,1735153849027,-500.0,0.00012535,2]
[346655965,1735153849036,-500.0,0.00012535,2]
[346655966,1735153849045,-500.0,0.00012535,2]
[346655967,1735153849055,-500.0,0.00012535,2]
[346655968,1735153849064,-736.25,0.00012535,2]
[346655969,1735153849073,-745.27,0.00012535,2]
[346655970,1735153849083,-596.11,0.00012535,2]
[346655971,1735153849092,-500.0,0.00012535,2]
[346655972,1735153849101,-500.0,0.00012535,2]
[346655973,1735153849110,-500.0,0.00012535,2]
[346655974,1735153849119,-500.0,0.00012535,2]
[346655975,1735153849128,-500.0,0.00012535,2]
[346655976,1735153849138,-500.0,0.00012535,2]
[346655977,1735153849147,-500.0,0.00012535,2]
[346655978,1735153849157,-500.0,0.00012535,2]
[346655979,1735153849167,-500.0,0.00012535,2]
[346655980,1735153849176,-500.0,0.00012535,2]
[346655981,1735153849188,-500.0,0.00012535,2]
[346655982,1735153849197,-500.0,0.00012535,2]
[346655983,1735153849207,-500.0,0.00012535,2]
[346655984,1735153849215,-500.0,0.00012535,2]
[346655985,1735153849225,-500.0,0.00012535,2]
[346655986,1735153849236,-500.0,0.00012535,2]
[346655987,1735153849246,-500.0,0.00012535,2]
[346655988,1735153849256,-729.8,0.00012535,2]
[346655989,1735153849265,-500.0,0.00012535,2]
[346655990,1735153849274,-500.0,0.00012535,2]
[346655991,1735153849284,-500.0,0.00012535,2]
[346655992,1735153849293,-500.0,0.00012535,2]
[346655993,1735153849303,-500.0,0.00012535,2]
[346655994,1735153849312,-550.31,0.00012535,2]
[346655995,1735153849321,-500.0,0.00012535,2]
[346655996,1735153849331,-1124.35,0.00012535,2]
[346655997,1735153849340,-506.34060198,0.00012535,2]
[346655998,1735153849349,-500.0,0.00012535,2]
[346655999,1735153849358,-500.0,0.00012535,2]
[346656000,1735153849368,-500.0,0.00012535,2]
[346656001,1735153849377,-1135.37,0.00012535,2]
[346656002,1735153849388,-500.0,0.00012535,2]
[346656003,1735153849398,-500.0,0.00012535,2]
[346656004,1735153849408,-500.0,0.00012535,2]
[346656005,1735153849418,-500.0,0.00012535,2]
[346656006,1735153849428,-500.0,0.00012535,2]
[346656007,1735153849437,-500.0,0.00012535,2]
[346656008,1735153849447,-500.0,0.00012535,2]
[346656009,1735153849456,-500.0,0.00012535,2]
[346656010,1735153849467,-500.0,0.00012535,2]
[346656011,1735153849479,-1381.17,0.00012535,2]
[346656012,1735153849490,-854.47,0.00012535,2]
[346656013,1735153849499,-1157.47,0.00012535,2]
[346656014,1735153849508,-500.0,0.00012535,2]
[346656015,1735153849517,-363.61811004,0.00012535,2]
[346656016,1735153849526,-500.0,0.00012535,2]
[346656017,1735153849536,-500.0,0.00012535,2]
[346656018,1735153849545,-500.0,0.00012536,2]
[346656019,1735153849554,-500.0,0.00012536,2]
[346656020,1735153849564,-223.56,0.00012536,2]
[346656021,1735153849574,-583.74,0.00012536,2]
[346656022,1735153849585,-396.7,0.00012536,2]
[346656023,1735153849595,-500.0,0.00012536,2]
[346656024,1735153849604,-500.0,0.00012536,2]
[346656025,1735153849614,-500.0,0.00012536,2]
[346656026,1735153849623,-537.86,0.00012536,2]
[346656027,1735153849632,-238.38,0.00012536,2]
[346656028,1735153849642,-500.0,0.00012536,2]
[346656029,1735153849651,-500.0,0.00012536,2]
[346656030,1735153849661,-500.0,0.00012536,2]
[346656031,1735153849670,-500.0,0.00012536,2]
[346656032,1735153849679,-500.0,0.00012536,2]
[346656033,1735153849690,-500.0,0.00012536,2]
[346656034,1735153849701,-500.0,0.00012536,2]
[346656035,1735153849711,-500.0,0.00012536,2]
[346656036,1735153849720,-500.0,0.00012536,2]
[346656037,1735153849729,-500.0,0.00012536,2]
[346656038,1735153849739,-500.0,0.00012536,2]
[346656039,1735153849748,-500.0,0.00012536,2]
[346656040,1735153849758,-500.0,0.00012536,2]
[346656041,1735153849767,-500.0,0.00012536,2]
[346656042,1735153849776,-500.0,0.00012536,2]
[346656043,1735153849789,-500.0,0.00012536,2]
[346656044,1735153849799,-500.0,0.00012536,2]
[346656045,1735153849809,-500.0,0.00012536,2]
[346656046,1735153849819,-500.0,0.00012536,2]
[346656047,1735153849829,-500.0,0.00012536,2]
[346656048,1735153849838,-500.0,0.00012536,2]
[346656049,1735153849848,-500.0,0.00012536,2]
[346656050,1735153849857,-292.82,0.00012536,2]
[346656051,1735153849866,-500.0,0.00012536,2]
[346656052,1735153849876,-500.0,0.00012536,2]
[346656053,1735153849887,-500.0,0.00012536,2]
[346656054,1735153849896,-500.0,0.00012536,2]
[346656055,1735153849905,-500.0,0.00012536,2]
[346656056,1735153849915,-500.0,0.00012536,2]
[346656057,1735153849925,-500.0,0.00012536,2]
[346656058,1735153849934,-500.0,0.00012536,2]
[346656059,1735153849944,-500.0,0.00012536,2]
[346656060,1735153849953,-500.0,0.00012536,2]
[346656061,1735153849963,-500.0,0.00012536,2]
[346656062,1735153849972,-500.0,0.00012536,2]
[346656063,1735153849981,-500.0,0.00012536,2]
[346656064,1735153849991,-500.0,0.00012536,2]
[346656065,1735153850000,-500.0,0.00012536,2]
[346656066,1735153850010,-500.0,0.00012536,2]
[346656067,1735153850019,-500.0,0.00012536,2]
[346656068,1735153850028,-500.0,0.00012536,2]
[346656069,1735153850038,-500.0,0.00012536,2]
[346656070,1735153850047,-500.0,0.00012536,2]
[346656071,1735153850057,-275.7,0.00012536,2]
[346656072,1735153850066,-500.0,0.00012536,2]
[346656073,1735153850075,-500.0,0.00012536,2]
[346656074,1735153850085,-500.0,0.00012536,2]
[346656075,1735153850098,-992.35,0.00012536,2]
[346656076,1735153850107,-500.0,0.00012536,2]
[346656077,1735153850117,-500.0,0.00012536,2]
[346656078,1735153850126,-500.0,0.00012536,2]
[346656079,1735153850136,-500.0,0.00012536,2]
[346656080,1735153850146,-500.0,0.00012536,2]
[346656081,1735153850155,-500.0,0.00012536,2]
[346656082,1735153850165,-500.0,0.00012536,2]
[346656083,1735153850174,-500.0,0.00012536,2]
[346656084,1735153850185,-500.0,0.00012536,2]
[346656085,1735153850195,-500.0,0.00012536,2]
[346656086,1735153850204,-500.0,0.00012536,2]
[346656087,1735153850214,-500.0,0.00012536,2]
[346656088,1735153850224,-500.0,0.00012536,2]
[346656089,1735153850234,-500.0,0.00012536,2]
[346656090,1735153850243,-500.0,0.00012536,2]
[346656091,1735153850253,-631.14,0.00012536,2]
[346656092,1735153850263,-500.0,0.00012536,2]
[346656093,1735153850273,-500.0,0.00012536,2]
[346656094,1735153850282,-500.0,0.00012536,2]
[346656095,1735153850291,-500.0,0.00012536,2]
[346656096,1735153850300,-500.0,0.00012536,2]
[346656097,1735153850309,-500.0,0.00012536,2]
[346656098,1735153850318,-500.0,0.00012536,2]
[346656099,1735153850327,-500.0,0.00012536,2]
[346656100,1735153850336,-500.0,0.00012536,2]
[346656101,1735153850345,-500.0,0.00012536,2]
[346656102,1735153850354,-553.71,0.00012536,2]
[346656103,1735153850363,-500.0,0.00012536,2]
[346656104,1735153850372,-500.0,0.00012536,2]
[346656105,1735153850382,-174.25152465,0.00012536,2]
[346656106,1735153850391,-500.0,0.00012536,2]
[346656107,1735153850400,-500.0,0.00012536,2]
[346656108,1735153850409,-500.0,0.00012536,2]
[346656109,1735153850419,-500.0,0.00012536,2]
[346656110,1735153850427,-500.0,0.00012536,2]
[346656111,1735153850436,-500.0,0.00012536,2]
[346656112,1735153850446,-500.0,0.00012536,2]
[346656113,1735153850455,-500.0,0.00012536,2]
[346656114,1735153850463,-515.02,0.00012536,2]
[346656115,1735153850473,-500.0,0.00012536,2]
[346656116,1735153850482,-500.0,0.00012536,2]
[346656117,1735153850491,-500.0,0.00012536,2]
[346656118,1735153850500,-500.0,0.00012536,2]
[346656119,1735153850509,-500.0,0.00012536,2]
[346656120,1735153850518,-500.0,0.00012536,2]
[346656121,1735153850528,-500.0,0.00012536,2]
[346656122,1735153850537,-500.0,0.00012536,2]
[346656123,1735153850546,-651.95,0.00012536,2]
[346656124,1735153850555,-500.0,0.00012536,2]
[346656125,1735153850564,-500.0,0.00012536,2]
[346656126,1735153850574,-500.0,0.00012536,2]
[346656127,1735153850583,-500.0,0.00012536,2]
[346656128,1735153850592,-500.0,0.00012536,2]
[346656129,1735153850602,-500.0,0.00012536,2]
[346656130,1735153850611,-500.0,0.00012536,2]
[346656131,1735153850621,-500.0,0.00012536,2]
[346656132,1735153850630,-500.0,0.00012536,2]
[346656133,1735153850639,-500.0,0.00012536,2]
[346656134,1735153850648,-500.0,0.00012536,2]
[346656135,1735153850658,-500.0,0.00012536,2]
[346656136,1735153850667,-500.0,0.00012536,2]
[346656137,1735153850677,-500.0,0.00012536,2]
[346656138,1735153850686,-815.38,0.00012536,2]
[346656139,1735153850695,-254.52744169,0.00012536,2]
[346656140,1735153850705,-500.0,0.00012536,2]
[346656141,1735153850714,-500.0,0.00012536,2]
[346656142,1735153850724,-907.6,0.00012536,2]
[346656143,1735153850733,-500.0,0.00012536,2]
[346656144,1735153850743,-500.0,0.00012536,2]
[346656145,1735153850752,-500.0,0.00012536,2]
[346656146,1735153850761,-754.88,0.00012536,2]
[346656147,1735153850770,-500.0,0.00012536,2]
[346656148,1735153850780,-500.0,0.00012536,2]
[346656149,1735153850790,-500.0,0.00012536,2]
[346656150,1735153850800,-2987.27,0.00012536,2]
[346656151,1735153850809,-500.0,0.00012536,2]
[346656152,1735153850819,-13586.92,0.00012536,2]
[346656153,1735153850828,-904.59,0.00012536,2]
[346656154,1735153850838,-1709.73,0.00012536,2]
[346656155,1735153850848,-500.0,0.00012536,2]
[346656156,1735153850857,-500.0,0.00012536,2]
[346656157,1735153850866,-1135.57,0.00012536,2]
[346656158,1735153850876,-500.0,0.00012536,2]
[346656159,1735153850886,-617.85,0.00012536,2]
[346656160,1735153850895,-500.0,0.00012536,2]
[346656161,1735153850904,-500.0,0.00012536,2]
[346656162,1735153850913,-1807.68,0.00012536,2]
[346656163,1735153850922,-500.0,0.00012536,2]
[346656164,1735153850931,-500.0,0.00012536,2]
[346656165,1735153850940,-10656.41,0.00012536,2]
[346656166,1735153850950,-500.0,0.00012536,2]
[346656167,1735153850959,-500.0,0.00012536,2]
[346656168,1735153850969,-1343.39,0.00012536,2]
[346656169,1735153850978,-1154.39,0.00012536,2]
[346656170,1735153850987,-687.1,0.00012536,2]
[346656171,1735153850996,-1680.14,0.00012536,2]
[346656172,1735153851005,-500.0,0.00012536,2]
[346656173,1735153851015,-500.0,0.00012536,2]
[346656174,1735153851024,-1000.0,0.00012536,2]
[346656175,1735153851033,-805.37,0.00012536,2]
[346656176,1735153851042,-603.89,0.00012536,2]
[346656177,1735153851051,-2397.42,0.00012536,2]
[346656178,1735153851061,-1000.0,0.00012541,2]
[346656179,1735153851071,-718.0,0.0001255,2]
[346656180,1735153851080,-9588.04428266,0.00012562,2]
[346656181,1735153851090,-272.1890686,0.00012563,2]
[346656182,1735153851099,-751.36,0.00012619,2]
[346656183,1735153851108,-2628.715,0.00012658,2]
[346656184,1735153851118,-158.414,0.00012658,2]
[346656185,1735153851127,-9588.04428266,0.00012675,2]
[346656186,1735153851137,-272.1890686,0.00012675,2]
[346656187,1735153851146,-203.4,0.00012703,2]
[346656188,1735153851155,-9588.04428266,0.00012787,2]
[346656189,1735153851164,-272.1890686,0.00012788,2]
[346656190,1735153851173,-1000.0,0.000128,2]
[346656191,1735153851183,-553.58,0.00012808,2]
[346656192,1735153851195,-1514.84,0.00012808,2]
[346656193,1735153851204,-2690.19,0.00012808,2]
[346656194,1735153851213,-773.73,0.00012808,2]
[346656195,1735153851222,-511.25,0.00012808,2]
[346656196,1735153851233,-1952.74,0.00012808,2]
[346656197,1735153851241,-4424.92,0.00012808,2]
[346656198,1735153851250,-952.2,0.00012808,2]
[346656199,1735153851260,-500.0,0.00012808,2]
[346656200,1735153851270,-443.459421,0.00012808,2]
[346656201,1735153851279,-582.43,0.00012808,2]
[346656202,1735153851289,-1098.6,0.00012808,2]
[346656203,1735153851298,-533.10699,0.00012808,2]
[346656204,1735153851307,-500.0,0.00012808,2]
[346656205,1735153851316,-1081.65,0.00012808,2]
[346656206,1735153851325,-1079.5,0.00012808,2]
[346656207,1735153851335,-528.95,0.00012808,2]
[346656208,1735153851344,-762.29,0.00012808,2]
[346656209,1735153851353,-1323.68,0.00012808,2]
[346656210,1735153851362,-1376.97,0.00012808,2]
[346656211,1735153851372,-500.0,0.00012808,2]
[346656212,1735153851381,-961.2,0.00012808,2]
[346656213,1735153851391,-629.29,0.00012808,2]
[346656214,1735153851400,-3026.11,0.00012808,2]
[346656215,1735153851409,-1908.01,0.00012808,2]
[346656216,1735153851417,-1558.27,0.00012808,2]
[346656217,1735153851427,-812.61,0.00012808,2]
[346656218,1735153851436,-1380.72,0.00012808,2]
[346656219,1735153851445,-500.0,0.00012808,2]
[346656220,1735153851454,-500.0,0.00012808,2]
[346656221,1735153851464,-6358.15,0.00012808,2]
[346656222,1735153851473,-2484.48,0.00012808,2]
[346656223,1735153851482,-1452.37,0.00012808,2]
[346656224,1735153851492,-4931.04,0.00012808,2]
[346656225,1735153851501,-1163.17,0.00012808,2]
[346656226,1735153851666,-2019.4,0.00012808,2]
[346656227,1735153851676,-4210.99,0.00012808,2]
[346656228,1735153851685,-1460.97,0.00012808,2]
[346656229,1735153851694,-3089.18,0.00012808,2]
[346656230,1735153851703,-2990.56,0.00012808,2]
[346656231,1735153851712,-1283.53,0.00012808,2]
[346656232,1735153851721,-1486.15,0.00012808,2]
[346656233,1735153851730,-500.0,0.00012808,2]
[346656234,1735153851739,-2583.17,0.00012808,2]
[346656235,1735153851748,-1076.5,0.00012808,2]
[346656236,1735153851757,-907.61,0.00012808,2]
[346656237,1735153851766,-2630.83,0.00012808,2]
[346656238,1735153851776,-1648.46,0.00012808,2]
[346656239,1735153851786,-881.5,0.00012808,2]
[346656240,1735153851795,-1676.19,0.00012808,2]
[346656241,1735153851804,-6555.72,0.00012808,2]
[346656242,1735153851813,-6977.92,0.00012808,2]
[346656243,1735153851823,-500.0,0.00012808,2]
[346656244,1735153851832,-715.85,0.00012808,2]
[346656245,1735153851841,-735.32,0.00012808,2]
[346656246,1735153851851,-500.0,0.00012808,2]
[346656247,1735153851860,-500.0,0.00012808,2]
[346656248,1735153851869,-500.0,0.00012808,2]
[346656249,1735153851879,-851.53,0.00012808,2]
[346656250,1735153851891,-500.0,0.00012808,2]
[346656251,1735153851901,-1449.19,0.00012808,2]
[346656252,1735153851911,-1245.2,0.00012808,2]
[346656253,1735153851921,-500.0,0.00012808,2]
[346656254,1735153851930,-1906.27,0.00012808,2]
[346656255,1735153851939,-500.0,0.00012808,2]
[346656256,1735153851949,-500.0,0.00012808,2]
[346656257,1735153851958,-552.49,0.00012809,2]
[346656258,1735153851967,-278.57,0.00012809,2]
[346656259,1735153851976,-500.0,0.00012809,2]
[346656260,1735153851985,-308.03,0.00012809,2]
[346656261,1735153851995,-500.0,0.00012809,2]
[346656262,1735153852003,-500.0,0.00012809,2]
[346656263,1735153852012,-500.0,0.00012809,2]
[346656264,1735153852022,-500.0,0.00012809,2]
[346656265,1735153852031,-500.0,0.00012809,2]
[346656266,1735153852039,-500.0,0.00012809,2]
[346656267,1735153852049,-500.0,0.00012809,2]
[346656268,1735153852058,-500.0,0.00012809,2]
[346656269,1735153852067,-486.89,0.00012809,2]
[346656270,1735153852076,-500.0,0.00012809,2]
[346656271,1735153852085,-293.84,0.00012809,2]
[346656272,1735153852094,-500.0,0.00012809,2]
[346656273,1735153852103,-425.43,0.00012809,2]
[346656274,1735153852112,-500.0,0.00012809,2]
[346656275,1735153852122,-500.0,0.00012809,2]
[346656276,1735153852131,-500.0,0.00012809,2]
[346656277,1735153852140,-500.0,0.00012809,2]
[346656278,1735153852149,-500.0,0.00012809,2]
[346656279,1735153852158,-500.0,0.00012809,2]
[346656280,1735153852167,-333.28,0.00012809,2]
[346656281,1735153852177,-500.0,0.00012809,2]
[346656282,1735153852192,-500.0,0.00012809,2]
[346656283,1735153852202,-500.0,0.00012809,2]
[346656284,1735153852212,-502.38,0.00012809,2]
[346656285,1735153852223,-500.0,0.00012809,2]
[346656286,1735153852234,-500.0,0.00012809,2]
[346656287,1735153852243,-500.0,0.00012809,2]
[346656288,1735153852252,-500.0,0.00012809,2]
[346656289,1735153852262,-500.0,0.00012809,2]
[346656290,1735153852272,-500.0,0.00012809,2]
[346656291,1735153852281,-500.0,0.00012809,2]
[346656292,1735153852292,-500.0,0.00012809,2]
[346656293,1735153852303,-500.0,0.00012809,2]
[346656294,1735153852314,-500.0,0.00012809,2]
[346656295,1735153852323,-523.28,0.00012809,2]
[346656296,1735153852333,-500.0,0.00012809,2]
[346656297,1735153852344,-500.0,0.00012809,2]
[346656298,1735153852354,-500.0,0.00012809,2]
[346656299,1735153852365,-500.0,0.00012809,2]
[346656300,1735153852375,-500.0,0.00012809,2]
[346656301,1735153852384,-500.0,0.00012809,2]
[346656302,1735153852394,-500.0,0.00012809,2]
[346656303,1735153852405,-553.08,0.00012809,2]
[346656304,1735153852414,-455.01247748,0.00012809,2]
[346656305,1735153852423,-401.61,0.00012809,2]
[346656306,1735153852431,-500.0,0.00012809,2]
[346656307,1735153852440,-284.62,0.00012809,2]
[346656308,1735153852449,-199.84,0.00012809,2]
[346656309,1735153852458,-249.11,0.00012809,2]
[346656310,1735153852467,-287.65,0.00012809,2]
[346656311,1735153852477,-207.34,0.00012809,2]
[346656312,1735153852486,-500.0,0.00012809,2]
[346656313,1735153852496,-500.0,0.00012809,2]
[346656314,1735153852505,-500.0,0.00012809,2]
[346656315,1735153852515,-500.0,0.00012809,2]
[346656316,1735153852525,-500.0,0.00012809,2]
[346656317,1735153852536,-500.0,0.00012809,2]